fUSD/lending_fUSD_20251231
["ID","MTS","AMOUNT","RATE_DAILY","PERIOD"]
[400158171,1767160244320,-1167.20426191,0.00016999,5]
[400158174,1767160244330,-1167.20426191,0.00016999,5]
[400158177,1767160244349,-300.0,0.00016999,2]
[400158179,1767160244362,-300.0,0.00016999,2]
[400158181,1767160244375,-666.0,0.00016999,2]
[400158184,1767160244390,-300.0,0.00016999,2]
[400158186,1767160244406,-150.0,0.00016999,2]
[400158189,1767160244420,-300.0,0.00016999,2]
[400158191,1767160244436,-49167.71781296,0.00017,2]
[400158194,1767160244452,-1164.99761564,0.00017,2]
[400158197,1767160244467,-4779.79456686,0.00017,2]
[400158199,1767160244480,-782.72427508,0.00017,2]
[400158202,1767160244494,-244366.35596778,0.00017,2]
[400158205,1767160244513,-506.67031361,0.00017,2]
[400158207,1767160244528,-4963.42952712,0.00017,2]
[400158210,1767160244542,-35315.69076441,0.00017,2]
[400158243,1767160244857,-2146.20119742,0.00017,2]
[400158246,1767160244873,-4139.35275217,0.00017,2]
[400158248,1767160244887,-869.12913994,0.00017,2]
[400158251,1767160244901,-337.27249606,0.00017,2]
[400158254,1767160244919,-51028.57691713,0.00017,2]
[400158256,1767160244935,-1015.95344153,0.00017,2]
[400158259,1767160244953,-3865.14,0.00017,2]
[400158262,1767160244968,-813.26362631,0.00017,2]
[400158264,1767160244983,-392.42322,0.00017,2]
[400158267,1767160244998,-412.05845751,0.00017,2]
[400158345,1767160245800,-44374.96821623,0.00017,2]
[400158354,1767160245913,-577.09,0.00017,2]
[400158356,1767160245928,-1928.75970184,0.00017,2]
[400158362,1767160245970,-5654.52714948,0.00017,2]
[400159934,1767160262131,599.76,8.259e-05,2]
[400159935,1767160262343,599.76,8.694e-05,2]
[400159936,1767160262566,599.76,9.129e-05,2]
[400159948,1767160262764,599.76,9.564e-05,2]
[400159957,1767160262945,599.76,9.998e-05,2]
[400159958,1767160263174,599.76,0.00010433,2]
[400159959,1767160263751,599.76,0.00010868,2]
[400159960,1767160263810,599.76,0.00011302,2]
[400159961,1767160263985,599.76,0.00011737,2]
[400159962,1767160264186,599.76,0.00012172,2]
[400159963,1767160264385,599.76,0.00012607,2]
[400159964,1767160264797,599.76,0.00013041,2]
[400159965,1767160265014,567.9919873,0.00013476,2]
[400159966,1767160265043,31.7680127,0.00013476,2]
[400159967,1767160268235,672.910108,7.945e-05,2]
[400159968,1767160269786,-166.66,0.00013911,2]
[400159969,1767160277600,-302.00611386,0.00013911,2]
[400159994,1767160398375,235.533997,0.0002658,120]
[400160149,1767160640728,-131.09388614,0.00013911,2]
[400160150,1767160640754,-112.71416092,0.00013955,2]
[400160214,1767160834081,-137.28583908,0.00013955,2]
[400160216,1767160834833,-207.40768688,0.00013987,2]
[400160221,1767160837416,-227.80136098,0.00013987,2]
[400160226,1767160839369,-243.11394327,0.00013987,2]
[400160230,1767160845648,-703.30915352,0.00013987,2]
[400160231,1767160848525,-912.10157944,0.00013987,2]
[400160233,1767160856291,-206.26627591,0.00013987,2]
[400160234,1767160856315,-158.62142968,0.00014,2]
[400160235,1767160856339,-6.36615202,0.00014011,2]
[400160241,1767160862728,85.9772855,0.00013911,2]
[400160246,1767160863100,-97.59769786,0.00013911,2]
[400160247,1767160863123,-216.28464636,0.00014011,2]
[400160258,1767160894678,-373.37230186,0.00013805,2]
[400160259,1767160896232,-279.48633976,0.00013805,2]
[400160320,1767161404481,-302.74535838,0.00013805,2]
[400160321,1767161404506,-35.38427571,0.00013986,2]
[400160322,1767161407031,-175.97006947,0.00013977,2]
[400160323,1767161414356,-227.14528256,0.00013986,2]
[400160324,1767161422386,-37.47044173,0.00013986,2]
[400160325,1767161422412,-268.13932257,0.00013986,2]
[400160326,1767161430067,-398.36875494,0.00013986,2]
[400160327,1767161431972,-533.49192249,0.00013986,2]
[400160328,1767161431982,-500.0,0.00013986,2]
[400160329,1767161431991,-229.90731607,0.00013986,2]
[400160330,1767161432001,-336.21632292,0.00013986,2]
[400160331,1767161432011,-12852.82865218,0.00013987,2]
[400160332,1767161432023,-51475.76087508,0.00013987,2]
[400160333,1767161432039,-7432.8911826,0.00013987,2]
[400160334,1767161432051,-633.63702697,0.00013987,2]
[400160335,1767161432062,-701.62574342,0.00013987,2]
[400160336,1767161432077,-1483.33288539,0.00013987,2]
[400160337,1767161432115,-1364.71260208,0.00013987,2]
[400160345,1767161438022,-585.9483003,0.00013986,2]
[400160346,1767161438032,-500.0,0.00013986,2]
[400160347,1767161438042,-500.0,0.00013986,2]
[400160348,1767161438051,-154.20422953,0.00013986,2]
[400160349,1767161438061,-500.0,0.00013986,2]
[400160350,1767161438071,-202.0945225,0.00013986,2]
[400160351,1767161438080,-500.0,0.00013986,2]
[400160352,1767161438090,-500.0,0.00013986,2]
[400160353,1767161438100,-500.0,0.00013986,2]
[400160354,1767161438109,-500.0,0.00013986,2]
[400160355,1767161438119,-500.0,0.00013986,2]
[400160356,1767161438129,-500.0,0.00013986,2]
[400160357,1767161438139,-500.0,0.00013986,2]
[400160358,1767161438148,-500.0,0.00013986,2]
[400160359,1767161438158,-500.0,0.00013986,2]
[400160360,1767161438167,-500.0,0.00013986,2]
[400160361,1767161438177,-500.0,0.00013986,2]
[400160362,1767161438187,-500.0,0.00013986,2]
[400160363,1767161438197,-500.0,0.00013986,2]
[400160364,1767161438207,-500.0,0.00013986,2]
[400160365,1767161438218,-500.0,0.00013986,2]
[400160366,1767161438228,-278.47465593,0.00013986,2]
[400160367,1767161438237,-500.0,0.00013986,2]
[400160368,1767161438247,-500.0,0.00013986,2]
[400160369,1767161438257,-500.0,0.00013986,2]
[400160370,1767161438268,-500.0,0.00013986,2]
[400160372,1767161438277,-500.0,0.00013986,2]
[400160374,1767161438287,-500.0,0.00013986,2]
[400160376,1767161438297,-500.0,0.00013986,2]
[400160378,1767161438307,-24837.93842601,0.00013987,2]
[400160380,1767161438319,-2652.55239844,0.00013987,2]
[400160383,1767161438330,-642.12284043,0.00013987,2]
[400160385,1767161438345,-7410.48326695,0.00013987,2]
[400160387,1767161438357,-305.96311241,0.00013987,2]
[400160390,1767161438368,-1023.47056,0.00013987,2]
[400160392,1767161438380,-5110.54948125,0.00013987,2]
[400160394,1767161438391,-5745.29579726,0.00013987,2]
[400160571,1767161440089,-617.05038201,0.00013987,2]
[400160609,1767161440364,-140028.24786711,0.00013987,2]
[400160622,1767161440476,-1526.23566516,0.00013987,2]
[400160648,1767161440720,-1.7e-07,0.00013987,2]
[400160650,1767161440731,-2558.00938181,0.00013987,2]
[400160652,1767161440743,-1372.94995013,0.00013987,2]
[400160997,1767161444040,-7834.50289934,0.00013987,2]
[400161194,1767161446064,-158.5129371,0.000139,2]
[400161196,1767161446074,-2293.39241428,0.00013987,2]
[400162715,1767161464936,-205.34122303,0.000139,2]
[400162716,1767161464960,-359.91913793,0.00013986,2]
[400162717,1767161468046,-286.38916232,0.00013986,2]
[400162718,1767161470564,-198.33595259,0.00013986,2]
[400162719,1767161478553,-171.10036562,0.00013986,2]
[400162720,1767161494373,-172.16790242,0.00013707,2]
[400162721,1767161496398,-263.72438278,0.00013707,2]
[400162722,1767161501748,-275.35137328,0.00013707,2]
[400162725,1767161599998,-53.23934152,0.00013707,2]
[400162726,1767161600027,-9.94907617,0.00013986,2]
[400162727,1767161600054,-150.0,0.00013986,2]
[400162728,1767161600080,-2.39138967,0.00013986,2]
[400162729,1767161605774,-158.62142965,0.00013887,2]
[400162730,1767161605800,-11.9902727,0.00013986,2]
[400162731,1767161608148,-273.29477365,0.00013986,2]
[400162732,1767161616079,-300.0,0.00013986,2]
[400162733,1767161621335,-183.97002739,0.00013986,2]
[400162734,1767161622784,-167.40329297,0.00013986,2]
[400162735,1767161624280,-163.14635088,0.00013986,2]
[400162737,1767161644909,-97.80389274,0.00013986,2]
[400162738,1767161644936,-161.44397693,0.00013986,2]
[400162753,1767161734364,-200.27002282,0.00013887,2]
[400162754,1767161743801,-235.31482456,0.00013887,2]
[400162756,1767161750559,-161.99344713,0.00013887,2]
[400162757,1767161752604,-165.58825374,0.00013887,2]
[400162758,1767161758259,-257.86725175,0.00013887,2]
[400162759,1767161758289,-35.14061582,0.00013887,2]
[400162760,1767161760566,-178.50987786,0.00013887,2]
[400162761,1767161767530,-189.76889679,0.00013886,2]
[400162763,1767161773832,-110.23110321,0.00013886,2]
[400162764,1767161773858,-192.71827511,0.00013887,2]
[400162765,1767161782430,-301.01588332,0.00013887,2]
[400162766,1767161784055,-200.0,0.00013887,2]
[400162767,1767161790094,-400.96983346,0.00013887,2]
[400162769,1767161798491,-349.43368836,0.00013817,2]
[400162770,1767161801107,-329.67079238,0.00013887,2]
[400162771,1767161806370,-260.602803,0.00013887,2]
[400162772,1767161807905,-231.55522864,0.00013887,2]
[400162773,1767161814046,-169.0957973,0.00013817,2]
[400162774,1767161821743,-492.99357096,0.00013817,2]
[400162775,1767161824280,-487.5372,0.00013786,2]
[400162776,1767161824309,-12.4628,0.00013817,2]
[400162777,1767161829974,-469.65860625,0.00013817,2]
[400162778,1767161832654,-152.05765186,0.00013817,2]
[400162779,1767161838833,-243.20052214,0.00013817,2]
[400162780,1767161846190,-458.81781897,0.00013817,2]
[400162781,1767161848760,-211.45180362,0.00013817,2]
[400162782,1767161854170,-166.81349127,0.00013817,2]
[400162783,1767161856364,-229.86321288,0.00013817,2]
[400162784,1767161861803,-199.54504677,0.00013817,2]
[400162785,1767161863763,-213.43153598,0.00013817,2]
[400162786,1767161863788,-0.98064517,0.00013887,2]
[400162787,1767161871023,-299.28773384,0.00013887,2]
[400162788,1767161872603,-197.39193956,0.00013887,2]
[400162789,1767161877870,-165.51901003,0.00013887,2]
[400162790,1767161880086,-158.11137897,0.00013887,2]
[400162791,1767161886692,-231.555229,0.00013817,2]
[400162792,1767161886714,-84.01425423,0.00013886,2]
[400162793,1767161888894,-159.38825297,0.00013886,2]
[400162794,1767161894120,-56.5974928,0.00013886,2]
[400162795,1767161894142,-300.0,0.00013886,2]
[400162796,1767161894165,-150.0,0.00013886,2]
[400162797,1767161894192,-3.9494503,0.00013886,2]
[400162798,1767161896173,-326.73408491,0.00013886,2]
[400162799,1767161904036,-320.00237996,0.00013886,2]
[400162800,1767161910871,-178.68706295,0.00013886,2]
[400162801,1767161914012,-57.62702188,0.00013886,2]
[400162802,1767161914037,-172.04565836,0.00013887,2]
[400162803,1767161918577,-12.76144243,0.00013887,2]
[400162804,1767161918601,-224.27345533,0.00013887,2]
[400162805,1767161921224,-326.16296859,0.00013887,2]
[400162806,1767161925519,-265.79197358,0.00013887,2]
[400162807,1767161929857,-264.31997141,0.00013887,2]
[400162808,1767161934721,-536.85576781,0.00013887,2]
[400162809,1767161937322,-376.6312636,0.00013887,2]
[400162810,1767161941500,-249.982578,0.00013886,2]
[400162811,1767161942949,-50.017422,0.00013886,2]
[400162812,1767161942973,-253.64662541,0.00013887,2]
[400162813,1767161944395,-293.67423551,0.00013887,2]
[400162814,1767161950026,-451.0,0.00013887,2]
[400162815,1767161952129,-152.86532469,0.00013887,2]
[400162816,1767161957516,-346.0670622,0.00013887,2]
[400162817,1767161958971,-164.14110938,0.00013887,2]
[400162818,1767161960501,-379.19939708,0.00013887,2]
[400162819,1767161965223,-186.94892859,0.00013887,2]
[400162820,1767161967891,-317.17398551,0.00013887,2]
[400162822,1767161976396,-180.18223329,0.00013817,2]
[400162823,1767161977987,-219.75789479,0.00013817,2]
[400162824,1767161981471,-267.90004059,0.00013817,2]
[400162825,1767161983619,-172.47088229,0.00013817,2]
[400162826,1767161986279,-467.85726347,0.00013817,2]
[400162827,1767161993228,-198.09561381,0.00013817,2]
[400162828,1767161997453,-164.6464563,0.00013817,2]
[400162830,1767161998983,-225.82568546,0.00013817,2]
[400162831,1767161999008,-55.88884725,0.00013887,2]
[400162835,1767162064552,-374.05568031,0.00013816,2]
[400162848,1767162184441,-268.0,0.00013779,2]
[400162849,1767162186855,-166.66,0.00013779,2]
[400162850,1767162192422,-201.15117636,0.00013779,2]
[400162851,1767162193833,-148.92976773,0.00013779,2]
[400162852,1767162193857,-2.76023227,0.00013786,2]
[400162853,1767162199211,-166.66,0.00013786,2]
[400162854,1767162229555,-213.60054963,0.00013586,2]
[400162855,1767162232699,-377.91227787,0.00013586,2]
[400162856,1767162238696,-286.11407827,0.00013586,2]
[400162857,1767162240249,-203.44747085,0.00013586,2]
[400162858,1767162242843,-225.32135981,0.00013585,2]
[400162859,1767162245947,-74.67864019,0.00013585,2]
[400162860,1767162245971,-92.34579205,0.00013585,2]
[400162861,1767162248544,-173.62906968,0.00013585,2]
[400162862,1767162250665,-34.02513827,0.00013585,2]
[400162863,1767162250689,-153.7373739,0.00013586,2]
[400162864,1767162253062,-190.20455927,0.00013586,2]
[400162865,1767162254571,-197.84231559,0.00013586,2]
[400162866,1767162256105,-215.00547981,0.00013586,2]
[400162867,1767162258291,-410.58755797,0.00013586,2]
[400162868,1767162258747,166.66,0.00012765,2]
[400162869,1767162258951,166.66,0.00013034,2]
[400162870,1767162259166,166.66,0.00013303,2]
[400162871,1767162262364,-166.66,0.00013572,2]
[400162872,1767162262389,-30.7540413,0.00013586,2]
[400162873,1767162265652,-162.35939663,0.00013586,2]
[400162874,1767162269796,-319.83458376,0.00013586,2]
[400162875,1767162271377,-332.2658813,0.00013586,2]
[400162876,1767162273979,-342.9528579,0.00013586,2]
[400162877,1767162276712,-182.34796988,0.00013586,2]
[400162878,1767162279470,-223.7392808,0.00013586,2]
[400162879,1767162282534,-446.74997068,0.00013586,2]
[400162880,1767162284047,-175.92842549,0.00013586,2]
[400162881,1767162286907,-300.0,0.00013586,2]
[400162882,1767162288963,-369.77900279,0.00013586,2]
[400162883,1767162290440,-153.72,0.00013586,2]
[400162884,1767162292983,-355.92758402,0.00013586,2]
[400162885,1767162294454,-193.66464589,0.00013586,2]
[400162886,1767162296673,-203.86,0.00013586,2]
[400162887,1767162300342,-171.15624172,0.00013586,2]
[400162888,1767162302050,-266.50708799,0.00013586,2]
[400162889,1767162304932,-178.24211257,0.00013586,2]
[400162890,1767162306994,-171.47555375,0.00013586,2]
[400162891,1767162310604,-218.40995586,0.00013586,2]
[400162892,1767162312703,-240.27207393,0.00013518,2]
[400162893,1767162314163,-336.01279608,0.00013586,2]
[400162894,1767162316817,-207.4122511,0.00013586,2]
[400162895,1767162318814,-166.66,0.00013586,2]
[400162896,1767162321968,-319.47994353,0.00013586,2]
[400162897,1767162324146,-250.0,0.00013586,2]
[400162898,1767162326286,-403.23602683,0.00013586,2]
[400162899,1767162329116,-257.45117937,0.00013518,2]
[400162900,1767162331803,-221.92360409,0.00013518,2]
[400162901,1767162335598,-229.22521654,0.00013518,2]
[400162902,1767162337766,-185.69,0.00013518,2]
[400162903,1767162340607,-233.76509833,0.00013518,2]
[400162904,1767162344396,-315.51067724,0.00013518,2]
[400162905,1767162346448,-305.4077139,0.00013518,2]
[400162906,1767162348506,-188.83753862,0.00013518,2]
[400162907,1767162351232,-161.05259991,0.00013518,2]
[400162908,1767162351257,-5.27976133,0.00013586,2]
[400162909,1767162355029,-195.0,0.00013586,2]
[400162910,1767162357974,-300.0,0.00013586,2]
[400162911,1767162362336,-238.3378692,0.00013586,2]
[400162914,1767162366338,-176.88943954,0.00013586,2]
[400162915,1767162368438,-335.22943184,0.00013586,2]
[400162916,1767162373796,-253.15861808,0.00013586,2]
[400162917,1767162375397,-198.16501142,0.00013586,2]
[400162918,1767162377457,-574.7156495,0.00013586,2]
[400162919,1767162382454,-168.26156098,0.00013586,2]
[400162920,1767162384011,-512.37073526,0.00013586,2]
[400162921,1767162386190,-177.91265073,0.00013586,2]
[400162922,1767162390040,-153.74930566,0.00013586,2]
[400162923,1767162409420,-178.1894853,0.00013518,2]
[400162924,1767162409761,200.0,0.00013347,2]
[400162925,1767162414452,-153.65871412,0.00013518,2]
[400162926,1767162416679,-196.34804293,0.00013518,2]
[400162938,1767162515167,-276.35635289,0.00013552,2]
[400162939,1767162515200,-15.64269343,0.00013586,2]
[400162940,1767162515237,-786.52807802,0.00013741,2]
[400162948,1767162560023,-203.86,0.00013699,2]
[400162949,1767162561435,-184.94993181,0.00013699,2]
[400162951,1767162565353,-249.982578,0.00013699,2]
[400163000,1767162567271,-162.10749019,0.00013699,2]
[400163002,1767162567294,-121.46300981,0.00013741,2]
[400163044,1767162589401,-6.0538652,0.00013741,2]
[400163045,1767162589426,-162.25939593,0.00013741,2]
[400163066,1767162632060,-75.01052185,0.00013741,2]
[400163067,1767162632071,-263.0,0.00013741,2]
[400163068,1767162632081,-151.0,0.00013784,2]
[400163070,1767162632092,-55.00947815,0.00013785,2]
[400163072,1767162632104,-219.42797385,0.00013785,2]
[400163074,1767162632114,-300.0,0.00013785,2]
[400163075,1767162632125,-1200.0,0.00013785,2]
[400163077,1767162632135,-300.0,0.00013785,2]
[400163079,1767162632145,-150.0,0.00013785,2]
[400163081,1767162632155,-585.35142604,0.00013786,2]
[400163083,1767162632166,-160.93512125,0.00013786,2]
[400163084,1767162632176,-505.01898847,0.00013786,2]
[400163085,1767162632187,-200.5323999,0.00013786,2]
[400163087,1767162632197,-500.0,0.00013786,2]
[400163088,1767162632207,-500.0,0.00013786,2]
[400163089,1767162632217,-500.0,0.00013786,2]
[400163090,1767162632226,-500.0,0.00013786,2]
[400163091,1767162632236,-500.0,0.00013786,2]
[400163092,1767162632246,-500.0,0.00013786,2]
[400163093,1767162632255,-500.0,0.00013786,2]
[400163094,1767162632265,-500.0,0.00013786,2]
[400163095,1767162632275,-500.0,0.00013786,2]
[400163096,1767162632285,-500.0,0.00013786,2]
[400163097,1767162632294,-465.46577472,0.00013786,2]
[400163098,1767162632304,-557.00151599,0.00013786,2]
[400163099,1767162632314,-500.0,0.00013786,2]
[400163100,1767162632323,-500.0,0.00013786,2]
[400163101,1767162632333,-71728.5939553,0.00013787,2]
[400163102,1767162632345,-48039.26501488,0.00013787,2]
[400163103,1767162632358,-1171.15387376,0.00013787,2]
[400163105,1767162632371,-3676.49703325,0.00013787,2]
[400163106,1767162632386,-731.71018286,0.00013787,2]
[400163108,1767162632402,-700.46681837,0.00013787,2]
[400163109,1767162632413,-4833.3439008,0.00013787,2]
[400163110,1767162632437,-559.2491887,0.00013787,2]
[400163112,1767162632458,-8988.8,0.00013787,2]
[400163114,1767162632476,-437.436765,0.00013787,2]
[400163116,1767162632489,-260.99999986,0.00013787,2]
[400163117,1767162632500,-434.30423461,0.00013787,2]
[400163120,1767162632517,-1707.54897056,0.00013787,2]
[400163122,1767162632532,-468.46685531,0.00013787,2]
[400163147,1767162638175,-17807.09054524,0.00013787,2]
[400163149,1767162638426,-14753.61128427,0.00013787,2]
[400163150,1767162638446,-456.0,0.00013787,2]
[400163151,1767162638458,-6721.92889469,0.00013787,2]
[400163319,1767162640196,-616.98161641,0.00013787,2]
[400163326,1767162640254,-2110.08564558,0.00013787,2]
[400163333,1767162640313,-612.4781407,0.00013787,2]
[400163336,1767162640325,-1135.96567531,0.00013787,2]
[400163338,1767162640337,-4710.92486005,0.00013787,2]
[400163360,1767162640540,-1726.00720309,0.00013787,2]
[400163363,1767162640551,-4119.45280101,0.00013787,2]
[400163504,1767162642105,-1.7e-07,0.00013787,2]
[400163506,1767162642117,-424.61229598,0.00013787,2]
[400163698,1767162643963,-103.5272,0.00013787,2]
[400163711,1767162644068,-2822.65653568,0.00013787,2]
[400163713,1767162644081,-2924.05367742,0.00013787,2]
[400163911,1767162646104,-4732.06827413,0.00013787,2]
[400163918,1767162646165,-1181.39263457,0.00013787,2]
[400163920,1767162646177,-2004.41399771,0.00013787,2]
[400163938,1767162646343,-538.93811734,0.00013787,2]
[400164115,1767162904394,-611.587,0.00013511,2]
[400164116,1767162904423,-360.98792388,0.00013687,2]
[400164119,1767162906466,-184.30048708,0.00013687,2]
[400164120,1767162907950,-272.64371643,0.00013687,2]
[400164122,1767162919361,-182.06787261,0.00013687,2]
[400164123,1767162919385,-2.28635267,0.00013687,2]
[400164124,1767162920892,-259.76001502,0.00013687,2]
[400164126,1767162924766,-236.00361132,0.00013687,2]
[400164127,1767162927114,-257.79369329,0.00013687,2]
[400164128,1767162930755,-168.32198253,0.00013687,2]
[400164129,1767162932372,-164.77834246,0.00013687,2]
[400164130,1767162972783,999.0,0.00013403,3]
[400164132,1767162980084,-194.68571787,0.00013617,2]
[400164133,1767162982120,-156.79467377,0.00013617,2]
[400164134,1767162983663,-211.84096424,0.00013617,2]
[400164135,1767163006133,1000.0,0.00013413,2]
[400164138,1767163039491,-55.51573412,0.00013617,2]
[400164139,1767163039517,-99.51469704,0.00013639,2]
[400164140,1767163041519,-78.89530296,0.00013639,2]
[400164141,1767163041852,-200.52857506,0.00013652,2]
[400164143,1767163175034,-11.31238918,0.00013652,2]
[400164144,1767163175059,-417.26014263,0.00013687,2]
[400164145,1767163177598,-220.54331013,0.00013687,2]
[400164146,1767163180964,-448.49237684,0.00013687,2]
[400164147,1767163183226,-195.0,0.00013687,2]
[400164148,1767163187139,-195.0,0.00013687,2]
[400164154,1767163204442,-169.02062467,0.00013686,2]
[400164189,1767163348693,8800.01,0.0001305,2]
[400164190,1767163348723,10000.01,0.0001305,2]
[400164191,1767163348753,25783.3,0.0001305,2]
[400164193,1767163388055,594.422334,7.945e-05,2]
[400164195,1767163400013,-171.71890271,0.00013617,2]
[400164196,1767163403864,-166.66,0.00013617,2]
[400164197,1767163406501,-361.80268287,0.00013617,2]
[400164198,1767163410872,-187.80115239,0.00013617,2]
[400164199,1767163413651,-272.93522269,0.00013617,2]
[400164201,1767163456776,507.58,6.504e-05,2]
[400164202,1767163456984,507.58,6.846e-05,2]
[400164203,1767163457208,507.58,7.188e-05,2]
[400164204,1767163457399,507.58,7.531e-05,2]
[400164205,1767163457590,507.58,7.873e-05,2]
[400164206,1767163457788,507.58,8.215e-05,2]
[400164207,1767163458193,507.58,8.557e-05,2]
[400164208,1767163458422,507.58,8.9e-05,2]
[400164209,1767163458622,507.58,9.242e-05,2]
[400164210,1767163458819,507.58,9.584e-05,2]
[400164211,1767163459027,507.58,9.927e-05,2]
[400164212,1767163459213,507.58,0.00010269,2]
[400164213,1767163459423,507.58,0.00010611,2]
[400164214,1767163459453,-250.0,0.00013652,2]
[400164215,1767163459830,52.0,0.00010954,2]
[400164216,1767163459854,455.58,0.00010954,2]
[400164217,1767163459904,507.58,0.00011296,2]
[400164218,1767163460060,507.58,0.00011638,2]
[400164219,1767163460269,507.58,0.0001198,2]
[400164220,1767163460596,507.58,0.00012323,2]
[400164221,1767163460826,507.58,0.00012665,2]
[400164222,1767163461016,507.58,0.00013007,2]
[400164226,1767163474502,-151.69,0.00013586,2]
[400164227,1767163477233,-174.56802001,0.00013586,2]
[400164228,1767163479957,-164.24425929,0.00013586,2]
[400164229,1767163479987,-35.75574071,0.00013586,2]
[400164230,1767163482107,-464.24425929,0.00013586,2]
[400164231,1767163482135,-9.914314,0.00013586,2]
[400164232,1767163484193,-179.3334067,0.00013586,2]
[400164233,1767163486951,-195.0,0.00013586,2]
[400164234,1767163489410,-115.7522793,0.00013586,2]
[400164235,1767163489440,-97.08732905,0.00013586,2]
[400164236,1767163493313,-402.91267095,0.00013586,2]
[400164237,1767163493342,-16.64421528,0.00013586,2]
[400164238,1767163496056,-224.98848957,0.00013586,2]
[400164242,1767163502359,-203.86,0.00013586,2]
[400164243,1767163506236,-96.14,0.00013586,2]
[400164244,1767163506263,-131.02478493,0.00013586,2]
[400164245,1767163507830,-168.97521507,0.00013586,2]
[400164246,1767163507855,-131.02478493,0.00013586,2]
[400164249,1767163510808,-272.83521507,0.00013586,2]
[400164250,1767163512362,-238.25944554,0.00013586,2]
[400164251,1767163514394,-490.62949565,0.00013586,2]
[400164253,1767163518091,-67.25105881,0.00013586,2]
[400164254,1767163518117,-150.0,0.00013586,2]
[400164255,1767163518148,-258.36729515,0.00013586,2]
[400164256,1767163518181,-170.84736472,0.00013586,2]
[400164257,1767163518213,-113.92428132,0.00013587,2]
[400164258,1767163520705,-227.98208343,0.00013587,2]
[400164259,1767163523317,1600.0,0.00013278,2]
[400164260,1767163523413,-200.0,0.00013587,2]
[400164261,1767163525979,-167.75983379,0.00013587,2]
[400164262,1767163527529,-283.58795538,0.00013587,2]
[400164263,1767163529062,-163.03828711,0.00013587,2]
[400164264,1767163533747,-614.65815078,0.00013517,2]
[400164265,1767163533778,-56.86562009,0.00013587,2]
[400164266,1767163536513,-187.28530058,0.00013587,2]
[400164267,1767163537965,-229.41689969,0.00013587,2]
[400164268,1767163543088,-355.88,0.00013587,2]
[400164269,1767163550737,-166.66,0.00013519,2]
[400164273,1767163553522,-200.0,0.00013519,2]
[400164274,1767163555485,-314.82,0.00013519,2]
[400164275,1767163558535,-166.66,0.00013519,2]
[400164276,1767163560073,-302.53539732,0.00013519,2]
[400164277,1767163564474,-39.09168668,0.00013519,2]
[400164278,1767163564500,-238.72638412,0.00013586,2]
[400164279,1767163568191,-61.27361588,0.00013586,2]
[400164280,1767163568225,-105.38638412,0.00013587,2]
[400164281,1767163570434,-196.45595785,0.00013587,2]
[400164282,1767163571999,-162.8662351,0.00013587,2]
[400164283,1767163573782,-278.54693503,0.00013587,2]
[400164284,1767163578641,-157.65642569,0.00013587,2]
[400164285,1767163581351,-205.20797754,0.00013587,2]
[400164286,1767163584040,-38.4308481,0.00013587,2]
[400164287,1767163584076,-163.83100343,0.00013587,2]
[400164288,1767163639485,-208.5949635,0.00013518,2]
[400164289,1767163641465,-152.7266571,0.00013518,2]
[400164290,1767163643213,-163.944123,0.00013518,2]
[400164291,1767163648192,-158.26933632,0.00013518,2]
[400164292,1767163654399,-300.0,0.00013518,2]
[400164293,1767163655912,-168.42970965,0.00013518,2]
[400164294,1767163659175,-209.54901978,0.00013518,2]
[400164391,1767163832286,-150.0,0.00013586,2]
[400164392,1767163832297,-1200.0,0.00013586,2]
[400164393,1767163832307,-300.0,0.00013586,2]
[400164394,1767163832317,-262.0,0.00013586,2]
[400164395,1767163832327,-160.2088392,0.00013586,2]
[400164396,1767163832336,-300.0,0.00013587,2]
[400164397,1767163832347,-158.17994518,0.00013587,2]
[400164398,1767163832357,-29475.1203057,0.00013587,2]
[400164399,1767163832371,-518.04655203,0.00013587,2]
[400164400,1767163832382,-763.04969767,0.00013587,2]